[Event "*** Titled Tuesday Blitz"]
[Site "Chess.com"]
[Date "2021.03.09"]
[Round "7"]
[White "Fighter008"]
[Black "Vasily85"]
[Result "1-0"]
[WhiteElo "2623"]
[BlackElo "2427"]
[TimeControl "180+1"]
[EndTime "11:21:55 PST"]
[Termination "Fighter008 won by checkmate"]

1. e4 {[%clk 0:03:00.9]} 1... c5 {[%clk 0:02:59.5]} 2. Nf3 {[%clk 0:02:58.3]}
2... e6 {[%clk 0:02:59.4]} 3. d4 {[%clk 0:02:58.1]} 3... cxd4 {[%clk 0:03:00.3]}
4. Nxd4 {[%clk 0:02:58.8]} 4... Nc6 {[%clk 0:03:01]} 5. Nc3 {[%clk 0:02:57.6]}
5... Qc7 {[%clk 0:03:00.9]} 6. Be3 {[%clk 0:02:57.2]} 6... a6 {[%clk 0:03:01.2]}
7. Qf3 {[%clk 0:02:57.1]} 7... Nf6 {[%clk 0:03:01.4]} 8. O-O-O {[%clk
0:02:56.3]} 8... Ne5 {[%clk 0:03:01.4]} 9. Qg3 {[%clk 0:02:56.6]} 9... b5 {[%clk
0:03:01.7]} 10. f4 {[%clk 0:02:54.4]} 10... Neg4 {[%clk 0:02:46.2]} 11. e5
{[%clk 0:02:47.4]} 11... Nxe3 {[%clk 0:02:41]} 12. Qxe3 {[%clk 0:02:47.8]} 12...
b4 {[%clk 0:02:40]} 13. Ne4 {[%clk 0:02:37.8]} 13... Nxe4 {[%clk 0:02:39.8]} 14.
Qxe4 {[%clk 0:02:38.4]} 14... Bb7 {[%clk 0:02:40.5]} 15. Qe3 {[%clk 0:02:35]}
15... Bc5 {[%clk 0:02:34.5]} 16. Qg3 {[%clk 0:02:28]} 16... O-O {[%clk
0:02:19.5]} 17. Nb3 {[%clk 0:02:20.8]} 17... Bb6 {[%clk 0:02:05.3]} 18. Bd3
{[%clk 0:02:19]} 18... a5 {[%clk 0:01:55]} 19. Kb1 {[%clk 0:02:01.9]} 19... a4
{[%clk 0:01:51.3]} 20. Nd2 {[%clk 0:01:59.3]} 20... Bd5 {[%clk 0:01:39.5]} 21.
Ne4 {[%clk 0:01:55.9]} 21... Bxe4 {[%clk 0:01:30.9]} 22. Bxe4 {[%clk 0:01:56.8]}
22... Rac8 {[%clk 0:01:31.4]} 23. Qd3 {[%clk 0:01:51.4]} 23... Rfd8 {[%clk
0:01:24]} 24. Bxh7+ {[%clk 0:01:49.2]} 24... Kf8 {[%clk 0:01:24.4]} 25. Be4
{[%clk 0:01:48.4]} 25... a3 {[%clk 0:01:14.3]} 26. b3 {[%clk 0:01:44.9]} 26...
Qa7 {[%clk 0:00:51.9]} 27. f5 {[%clk 0:01:39.2]} 27... exf5 {[%clk 0:00:49.5]}
28. Bxf5 {[%clk 0:01:38.4]} 28... Rc3 {[%clk 0:00:48.9]} 29. Qd6+ {[%clk
0:01:36.6]} 29... Kg8 {[%clk 0:00:48.8]} 30. Qxb4 {[%clk 0:01:32.2]} 30... Qc7
{[%clk 0:00:42.5]} 31. e6 {[%clk 0:01:20.9]} 31... Qe5 {[%clk 0:00:22.1]} 32.
exf7+ {[%clk 0:01:15.5]} 32... Kxf7 {[%clk 0:00:23]} 33. Rhf1 {[%clk 0:00:48.4]}
33... Rf3 {[%clk 0:00:20.6]} 34. Bg6+ {[%clk 0:00:28]} 34... Kg8 {[%clk
0:00:10.5]} 35. Qxa3 {[%clk 0:00:20.7]} 35... Rxf1 {[%clk 0:00:08.7]} 36. Rxf1
{[%clk 0:00:20.4]} 36... Qe2 {[%clk 0:00:07.7]} 37. Bd3 {[%clk 0:00:19.5]} 37...
Qe3 {[%clk 0:00:07.2]} 38. Qb4 {[%clk 0:00:18]} 38... Bd4 {[%clk 0:00:05.8]} 39.
Qc4+ {[%clk 0:00:17.8]} 39... d5 {[%clk 0:00:05.1]} 40. Qc7 {[%clk 0:00:16.3]}
40... Re8 {[%clk 0:00:05.1]} 41. Qf7+ {[%clk 0:00:16]} 41... Kh8 {[%clk
0:00:05.6]} 42. Qh5+ {[%clk 0:00:16.3]} 42... Qh6 {[%clk 0:00:06.1]} 43. Qxe8#
{[%clk 0:00:16.5]} 1-0

[Event "*** Titled Tuesday Blitz"]
[Site "Chess.com"]
[Date "2021.03.09"]
[Round "7"]
[White "eCztery"]
[Black "Vesper2018"]
[Result "1-0"]
[WhiteElo "2450"]
[BlackElo "2567"]
[TimeControl "180+1"]
[EndTime "11:21:57 PST"]
[Termination "eCztery won on time"]

1. e4 {[%clk 0:03:00.9]} 1... c5 {[%clk 0:02:59.5]} 2. Nf3 {[%clk 0:03:00.3]}
2... d6 {[%clk 0:02:59.3]} 3. d4 {[%clk 0:02:59.5]} 3... cxd4 {[%clk 0:02:59.1]}
4. Qxd4 {[%clk 0:03:00.4]} 4... Nc6 {[%clk 0:02:58.1]} 5. Bb5 {[%clk 0:02:59.8]}
5... Bd7 {[%clk 0:02:56.9]} 6. Bxc6 {[%clk 0:02:59.2]} 6... Bxc6 {[%clk
0:02:56.8]} 7. Nc3 {[%clk 0:02:59.7]} 7... Nf6 {[%clk 0:02:57]} 8. Bg5 {[%clk
0:02:58.1]} 8... e6 {[%clk 0:02:57]} 9. O-O-O {[%clk 0:02:57.2]} 9... Be7 {[%clk
0:02:57.2]} 10. Rhe1 {[%clk 0:02:56.7]} 10... O-O {[%clk 0:02:56.8]} 11. Kb1
{[%clk 0:02:57.1]} 11... Qa5 {[%clk 0:02:46.4]} 12. Qd2 {[%clk 0:02:56.3]} 12...
Qa6 {[%clk 0:02:40.1]} 13. Nd4 {[%clk 0:02:54.1]} 13... b5 {[%clk 0:02:31.5]}
14. Bxf6 {[%clk 0:02:38.7]} 14... Bxf6 {[%clk 0:02:22]} 15. Nxc6 {[%clk
0:02:38.3]} 15... Qxc6 {[%clk 0:02:21.2]} 16. Qxd6 {[%clk 0:02:37.5]} 16... Qc4
{[%clk 0:02:07.7]} 17. e5 {[%clk 0:02:11.4]} 17... Rfd8 {[%clk 0:01:37.5]} 18.
Qa6 {[%clk 0:02:09.6]} 18... Bxe5 {[%clk 0:01:19.5]} 19. Qxb5 {[%clk 0:02:03.5]}
19... Rxd1+ {[%clk 0:00:57.2]} 20. Rxd1 {[%clk 0:02:02.9]} 20... Qxb5 {[%clk
0:00:57.8]} 21. Nxb5 {[%clk 0:02:03.8]} 21... Rb8 {[%clk 0:00:58]} 22. Nd4
{[%clk 0:01:57.2]} 22... Rd8 {[%clk 0:00:30.4]} 23. c3 {[%clk 0:01:56.6]} 23...
Bxh2 {[%clk 0:00:26.7]} 24. Rh1 {[%clk 0:01:40.2]} 24... Bc7 {[%clk 0:00:21.8]}
25. Kc2 {[%clk 0:01:38.8]} 25... a5 {[%clk 0:00:20.4]} 26. a4 {[%clk 0:01:30.8]}
26... Bb6 {[%clk 0:00:20.3]} 27. Nc6 {[%clk 0:01:29]} 27... Rd6 {[%clk
0:00:18.2]} 28. Ne5 {[%clk 0:01:28.1]} 28... Bxf2 {[%clk 0:00:15.6]} 29. Rf1
{[%clk 0:01:28.7]} 29... Bg3 {[%clk 0:00:08.8]} 30. Nxf7 {[%clk 0:01:28.9]}
30... Rd5 {[%clk 0:00:08.6]} 31. b4 {[%clk 0:01:23.3]} 31... axb4 {[%clk
0:00:07]} 32. cxb4 {[%clk 0:01:24.2]} 32... Bc7 {[%clk 0:00:05.6]} 33. a5 {[%clk
0:01:21]} 33... h6 {[%clk 0:00:05.1]} 34. Kb3 {[%clk 0:01:18.9]} 34... e5 {[%clk
0:00:03.5]} 35. Kc4 {[%clk 0:01:18.1]} 35... Rd4+ {[%clk 0:00:03.3]} 36. Kc5
{[%clk 0:01:18.5]} 36... Rd7 {[%clk 0:00:03.5]} 37. Kc6 {[%clk 0:01:17.7]} 37...
Rxf7 {[%clk 0:00:02.6]} 38. Rxf7 {[%clk 0:01:18.6]} 38... Kxf7 {[%clk
0:00:03.1]} 39. a6 {[%clk 0:00:53.1]} 39... Bb8 {[%clk 0:00:03.2]} 40. Kb7
{[%clk 0:00:52.4]} 40... Ba7 {[%clk 0:00:03.7]} 41. Kxa7 {[%clk 0:00:51.5]}
41... e4 {[%clk 0:00:04.3]} 42. Kb6 {[%clk 0:00:46]} 42... e3 {[%clk 0:00:05.2]}
43. a7 {[%clk 0:00:46.4]} 43... e2 {[%clk 0:00:05.8]} 44. a8=Q {[%clk
0:00:47.2]} 44... e1=Q {[%clk 0:00:06.2]} 45. Qd5+ {[%clk 0:00:45.6]} 45... Kg6
{[%clk 0:00:05]} 46. b5 {[%clk 0:00:45.9]} 46... h5 {[%clk 0:00:03.1]} 47. Kc7
{[%clk 0:00:42.9]} 47... Qc3+ {[%clk 0:00:02.4]} 48. Qc6+ {[%clk 0:00:42.7]}
48... Qxc6+ {[%clk 0:00:02]} 49. bxc6 {[%clk 0:00:43.6]} 49... Kh6 {[%clk
0:00:02.4]} 50. Kd7 {[%clk 0:00:43.2]} 50... g5 {[%clk 0:00:02.6]} 51. c7 {[%clk
0:00:44]} 1-0

[Event "*** Titled Tuesday Blitz"]
[Site "Chess.com"]
[Date "2021.03.09"]
[Round "7"]
[White "catzapto"]
[Black "jd001"]
[Result "0-1"]
[WhiteElo "2092"]
[BlackElo "2222"]
[TimeControl "180+1"]
[EndTime "11:21:57 PST"]
[Termination "jd001 won by checkmate"]

1. e4 {[%clk 0:03:00.9]} 1... e6 {[%clk 0:03:00.1]} 2. d4 {[%clk 0:03:00.2]}
2... d5 {[%clk 0:03:00]} 3. Nd2 {[%clk 0:02:54.9]} 3... Nf6 {[%clk 0:02:59.4]}
4. e5 {[%clk 0:02:53.9]} 4... Nfd7 {[%clk 0:02:59.2]} 5. Bd3 {[%clk 0:02:54.8]}
5... c5 {[%clk 0:02:59.1]} 6. c3 {[%clk 0:02:55.7]} 6... Nc6 {[%clk 0:02:59.3]}
7. Ne2 {[%clk 0:02:55.8]} 7... cxd4 {[%clk 0:02:59.5]} 8. cxd4 {[%clk
0:02:55.6]} 8... f6 {[%clk 0:03:00.2]} 9. exf6 {[%clk 0:02:53.6]} 9... Nxf6
{[%clk 0:02:59.5]} 10. O-O {[%clk 0:02:52.1]} 10... Bd6 {[%clk 0:03:00.1]} 11.
Nf3 {[%clk 0:02:46.6]} 11... Qc7 {[%clk 0:03:00.1]} 12. Bg5 {[%clk 0:02:31.6]}
12... O-O {[%clk 0:02:55.5]} 13. Rc1 {[%clk 0:02:28.9]} 13... a6 {[%clk
0:02:54.7]} 14. Bb1 {[%clk 0:02:22.3]} 14... Nh5 {[%clk 0:02:53.6]} 15. Qd3
{[%clk 0:02:16.4]} 15... g6 {[%clk 0:02:53.3]} 16. Bh6 {[%clk 0:02:13.8]} 16...
Ng7 {[%clk 0:02:51.7]} 17. Ng3 {[%clk 0:02:04.8]} 17... Bf4 {[%clk 0:02:47.3]}
18. Bxf4 {[%clk 0:01:59.2]} 18... Qxf4 {[%clk 0:02:46.5]} 19. Qe3 {[%clk
0:01:57.5]} 19... Bd7 {[%clk 0:02:39.5]} 20. Rfe1 {[%clk 0:01:54.6]} 20... Rac8
{[%clk 0:02:31.1]} 21. h3 {[%clk 0:01:36.9]} 21... Qf6 {[%clk 0:02:26.2]} 22.
Ne5 {[%clk 0:01:34.3]} 22... Nxe5 {[%clk 0:02:21.7]} 23. dxe5 {[%clk 0:01:34.6]}
23... Qe7 {[%clk 0:02:08.5]} 24. Rxc8 {[%clk 0:01:32.9]} 24... Rxc8 {[%clk
0:02:07.6]} 25. Rc1 {[%clk 0:01:33.5]} 25... Rxc1+ {[%clk 0:01:58.2]} 26. Qxc1
{[%clk 0:01:33.3]} 26... Bc6 {[%clk 0:01:58.4]} 27. a3 {[%clk 0:01:29.4]} 27...
Qc7 {[%clk 0:01:57]} 28. b4 {[%clk 0:01:25.2]} 28... Qxe5 {[%clk 0:01:55.6]} 29.
Kh2 {[%clk 0:01:15.1]} 29... d4 {[%clk 0:01:55]} 30. f3 {[%clk 0:00:51.7]} 30...
Nh5 {[%clk 0:01:52.5]} 31. f4 {[%clk 0:00:42.7]} 31... Qxf4 {[%clk 0:01:51.1]}
32. Qxf4 {[%clk 0:00:39.2]} 32... Nxf4 {[%clk 0:01:50.9]} 33. Be4 {[%clk
0:00:30.5]} 33... d3 {[%clk 0:01:47]} 34. Bxc6 {[%clk 0:00:29.4]} 34... bxc6
{[%clk 0:01:45]} 35. Ne4 {[%clk 0:00:29.4]} 35... Kf7 {[%clk 0:01:14]} 36. g3
{[%clk 0:00:29.8]} 36... Nd5 {[%clk 0:01:12.2]} 37. Kg2 {[%clk 0:00:28.2]} 37...
e5 {[%clk 0:01:11.7]} 38. Kf2 {[%clk 0:00:22.4]} 38... Ke6 {[%clk 0:01:11.4]}
39. Ng5+ {[%clk 0:00:22.3]} 39... Kf5 {[%clk 0:01:10.3]} 40. Nxh7 {[%clk
0:00:23.2]} 40... e4 {[%clk 0:01:09.6]} 41. h4 {[%clk 0:00:16.3]} 41... e3+
{[%clk 0:01:09.6]} 42. Kf3 {[%clk 0:00:16.9]} 42... d2 {[%clk 0:01:06.9]} 43.
Ke2 {[%clk 0:00:10.7]} 43... Nc3+ {[%clk 0:00:59.9]} 44. Kxe3 {[%clk 0:00:11.2]}
44... d1=Q {[%clk 0:00:59.4]} 45. Ng5 {[%clk 0:00:11.2]} 45... Nd5+ {[%clk
0:00:48.7]} 46. Kf2 {[%clk 0:00:10.8]} 46... Qc2+ {[%clk 0:00:44.3]} 47. Kf3
{[%clk 0:00:10.4]} 47... Qc3+ {[%clk 0:00:43.3]} 48. Kg2 {[%clk 0:00:10.9]}
48... Qxa3 {[%clk 0:00:42]} 49. Kh3 {[%clk 0:00:10.3]} 49... Qxb4 {[%clk
0:00:41.6]} 50. g4+ {[%clk 0:00:10.1]} 50... Qxg4+ {[%clk 0:00:41.3]} 51. Kh2
{[%clk 0:00:10.9]} 51... Qxh4+ {[%clk 0:00:41.5]} 52. Nh3 {[%clk 0:00:11.3]}
52... Nf4 {[%clk 0:00:38.8]} 53. Kg1 {[%clk 0:00:11]} 53... Qg3+ {[%clk
0:00:34.1]} 54. Kh1 {[%clk 0:00:10.4]} 54... Qxh3+ {[%clk 0:00:34.2]} 55. Kg1
{[%clk 0:00:10.8]} 55... Qg2# {[%clk 0:00:33.4]} 0-1

[Event "*** Titled Tuesday Blitz"]
[Site "Chess.com"]
[Date "2021.03.09"]
[Round "7"]
[White "lindsay790"]
[Black "Ziyamammadov"]
[Result "1-0"]
[WhiteElo "2199"]
[BlackElo "1787"]
[TimeControl "180+1"]
[EndTime "11:21:58 PST"]
[Termination "lindsay790 won by resignation"]

1. e4 {[%clk 0:03:00.9]} 1... e6 {[%clk 0:02:59.6]} 2. d4 {[%clk 0:02:58.6]}
2... d5 {[%clk 0:03:00]} 3. Nc3 {[%clk 0:02:58]} 3... dxe4 {[%clk 0:02:59.9]} 4.
Nxe4 {[%clk 0:02:57.6]} 4... Nd7 {[%clk 0:03:00.8]} 5. Nf3 {[%clk 0:02:52.4]}
5... Ngf6 {[%clk 0:03:00.2]} 6. Ng3 {[%clk 0:02:52.4]} 6... Be7 {[%clk 0:02:51]}
7. Be2 {[%clk 0:02:43.4]} 7... O-O {[%clk 0:02:50]} 8. O-O {[%clk 0:02:43.4]}
8... c5 {[%clk 0:02:46.6]} 9. b3 {[%clk 0:02:37.4]} 9... cxd4 {[%clk 0:02:46.1]}
10. Nxd4 {[%clk 0:02:36.9]} 10... Ne5 {[%clk 0:02:43.1]} 11. Bb2 {[%clk
0:02:35.4]} 11... Bc5 {[%clk 0:02:38]} 12. Nxe6 {[%clk 0:02:21.3]} 12... Qxd1
{[%clk 0:02:04.7]} 13. Raxd1 {[%clk 0:02:16.9]} 13... fxe6 {[%clk 0:02:01.9]}
14. Bxe5 {[%clk 0:02:14.3]} 14... Nd5 {[%clk 0:01:59.6]} 15. Bc4 {[%clk
0:02:06.2]} 15... Nb6 {[%clk 0:01:51]} 16. Be2 {[%clk 0:01:54.8]} 16... Bd7
{[%clk 0:01:48]} 17. Bg4 {[%clk 0:01:43.7]} 17... Rad8 {[%clk 0:01:33.5]} 18.
Ne4 {[%clk 0:01:40.7]} 18... Bb4 {[%clk 0:01:23]} 19. c3 {[%clk 0:01:31]} 19...
Ba3 {[%clk 0:01:17.5]} 20. Bd6 {[%clk 0:01:13.1]} 20... Bxd6 {[%clk 0:01:12.3]}
21. Nxd6 {[%clk 0:01:01.1]} 21... Nd5 {[%clk 0:00:56.9]} 22. c4 {[%clk
0:00:58.6]} 22... Nf6 {[%clk 0:00:53]} 23. Bh3 {[%clk 0:00:54.3]} 23... e5
{[%clk 0:00:48.8]} 24. Nxb7 {[%clk 0:00:49.4]} 24... Rb8 {[%clk 0:00:33]} 25.
Bxd7 {[%clk 0:00:19.3]} 25... Rxb7 {[%clk 0:00:31.2]} 26. Be6+ {[%clk
0:00:19.6]} 26... Kh8 {[%clk 0:00:30.8]} 27. f3 {[%clk 0:00:20.2]} 27... Re7
{[%clk 0:00:30.7]} 28. Bh3 {[%clk 0:00:18.8]} 28... Rfe8 {[%clk 0:00:29.9]} 29.
Rfe1 {[%clk 0:00:18.4]} 29... e4 {[%clk 0:00:29]} 30. fxe4 {[%clk 0:00:18.7]}
30... Nxe4 {[%clk 0:00:25.1]} 31. Rd7 {[%clk 0:00:18.8]} 31... Rxd7 {[%clk
0:00:16.9]} 32. Bxd7 {[%clk 0:00:18.4]} 32... Re7 {[%clk 0:00:17]} 33. Bc6
{[%clk 0:00:18.1]} 33... Rc7 {[%clk 0:00:02.9]} 34. Bxe4 {[%clk 0:00:17.8]}
34... Re7 {[%clk 0:00:02.8]} 35. Kf2 {[%clk 0:00:17.9]} 35... Kg8 {[%clk
0:00:03.2]} 36. Ke3 {[%clk 0:00:18.3]} 36... Kf7 {[%clk 0:00:03.7]} 37. Kd4
{[%clk 0:00:18.7]} 37... Kf6 {[%clk 0:00:04.5]} 38. Rf1+ {[%clk 0:00:18.2]} 1-0

[Event "*** Titled Tuesday Blitz"]
[Site "Chess.com"]
[Date "2021.03.09"]
[Round "7"]
[White "AlexPapasimakopoulos"]
[Black "Kurkusha"]
[Result "1-0"]
[WhiteElo "2590"]
[BlackElo "2370"]
[TimeControl "180+1"]
[EndTime "11:21:59 PST"]
[Termination "AlexPapasimakopoulos won by resignation"]

1. d4 {[%clk 0:03:00.9]} 1... d5 {[%clk 0:02:59.8]} 2. c4 {[%clk 0:03:00.9]}
2... e6 {[%clk 0:02:59.8]} 3. Nc3 {[%clk 0:03:00.9]} 3... Nf6 {[%clk 0:03:00.2]}
4. cxd5 {[%clk 0:03:01]} 4... exd5 {[%clk 0:03:00]} 5. Bg5 {[%clk 0:03:01.6]}
5... Be7 {[%clk 0:02:59.3]} 6. e3 {[%clk 0:03:02.1]} 6... c6 {[%clk 0:02:59.3]}
7. Bd3 {[%clk 0:03:02.3]} 7... O-O {[%clk 0:02:59.7]} 8. Qc2 {[%clk 0:03:02.4]}
8... h6 {[%clk 0:03:00.2]} 9. Bh4 {[%clk 0:03:02.9]} 9... Re8 {[%clk 0:03:00.6]}
10. Nf3 {[%clk 0:03:03.4]} 10... Nbd7 {[%clk 0:03:00.1]} 11. O-O {[%clk
0:03:04]} 11... Ne4 {[%clk 0:03:00.5]} 12. Bxe7 {[%clk 0:03:03.7]} 12... Qxe7
{[%clk 0:03:01.4]} 13. Rab1 {[%clk 0:03:04.2]} 13... Ndf6 {[%clk 0:03:00.9]} 14.
Ne5 {[%clk 0:03:03.8]} 14... Nd6 {[%clk 0:02:54.3]} 15. b4 {[%clk 0:02:58.8]}
15... Bd7 {[%clk 0:02:53.1]} 16. a4 {[%clk 0:02:58.3]} 16... Rac8 {[%clk
0:02:47]} 17. Rfc1 {[%clk 0:02:57.3]} 17... b5 {[%clk 0:02:21.4]} 18. axb5
{[%clk 0:02:49.3]} 18... cxb5 {[%clk 0:02:20.6]} 19. Qa2 {[%clk 0:02:49.5]}
19... Nc4 {[%clk 0:01:43.3]} 20. Bxc4 {[%clk 0:02:43.2]} 20... bxc4 {[%clk
0:01:43.2]} 21. Qxa7 {[%clk 0:02:42.6]} 21... Bf5 {[%clk 0:01:43.5]} 22. Qxe7
{[%clk 0:02:41.1]} 22... Rxe7 {[%clk 0:01:44.4]} 23. Ra1 {[%clk 0:02:39.7]}
23... Rb7 {[%clk 0:01:38.9]} 24. b5 {[%clk 0:02:38]} 24... Kf8 {[%clk
0:00:57.2]} 25. f3 {[%clk 0:02:34.8]} 25... Nd7 {[%clk 0:00:53.2]} 26. Nxd7+
{[%clk 0:02:18.3]} 26... Bxd7 {[%clk 0:00:54.1]} 27. Nxd5 {[%clk 0:02:16.4]}
27... Rxb5 {[%clk 0:00:53.1]} 28. e4 {[%clk 0:02:13]} 28... Be6 {[%clk
0:00:51.6]} 29. Nc3 {[%clk 0:02:08.3]} 29... Rb3 {[%clk 0:00:50.2]} 30. Ra2
{[%clk 0:02:05.6]} 30... Rcb8 {[%clk 0:00:41.5]} 31. Rcc2 {[%clk 0:02:05.6]}
31... Ke7 {[%clk 0:00:39.2]} 32. Kf2 {[%clk 0:02:05.6]} 32... g6 {[%clk
0:00:27.4]} 33. d5 {[%clk 0:02:05.1]} 33... Bd7 {[%clk 0:00:27.1]} 34. Nd1
{[%clk 0:02:05]} 34... Rc8 {[%clk 0:00:25.7]} 35. Ne3 {[%clk 0:02:01.9]} 35...
c3 {[%clk 0:00:22.1]} 36. Nd1 {[%clk 0:02:02]} 36... Bb5 {[%clk 0:00:21.1]} 37.
Ke3 {[%clk 0:02:01.6]} 37... Kd6 {[%clk 0:00:20]} 38. Kd4 {[%clk 0:01:53.1]}
38... Rb4+ {[%clk 0:00:19.8]} 39. Ke3 {[%clk 0:01:53.7]} 39... Rb3 {[%clk
0:00:19.3]} 40. Ra1 {[%clk 0:01:51.9]} 40... g5 {[%clk 0:00:17.1]} 41. Rac1
{[%clk 0:01:52.2]} 41... Ke5 {[%clk 0:00:16.5]} 42. Rxc3 {[%clk 0:01:46.1]}
42... Rcxc3+ {[%clk 0:00:11.9]} 43. Nxc3 {[%clk 0:01:34.5]} 43... Bd7 {[%clk
0:00:07.6]} 44. g3 {[%clk 0:01:33.6]} 44... f5 {[%clk 0:00:07]} 45. f4+ {[%clk
0:01:34.1]} 45... gxf4+ {[%clk 0:00:07.2]} 46. gxf4+ {[%clk 0:01:35]} 46... Kd6
{[%clk 0:00:07.5]} 47. e5+ {[%clk 0:01:35.4]} 47... Kc5 {[%clk 0:00:07.6]} 48.
Kd3 {[%clk 0:01:29.3]} 48... Bb5+ {[%clk 0:00:07.1]} 49. Kd2 {[%clk 0:01:29.9]}
49... Kd4 {[%clk 0:00:04.4]} 50. d6 {[%clk 0:01:26]} 50... Bd7 {[%clk
0:00:02.7]} 51. Ne2+ {[%clk 0:01:23.6]} 51... Ke4 {[%clk 0:00:02.7]} 52. Rc4+
{[%clk 0:01:23.2]} 52... Kd5 {[%clk 0:00:02.3]} 53. Rc7 {[%clk 0:01:20.4]} 53...
Be6 {[%clk 0:00:02.3]} 54. d7 {[%clk 0:01:15.1]} 54... Rb2+ {[%clk 0:00:02.4]}
55. Kc3 {[%clk 0:01:13.1]} 55... Rb8 {[%clk 0:00:02.4]} 56. Nd4 {[%clk
0:01:06.3]} 56... Rd8 {[%clk 0:00:01.5]} 57. Nxe6 {[%clk 0:01:05.4]} 57... Kxe6
{[%clk 0:00:02.4]} 58. Rc6+ {[%clk 0:01:05.8]} 58... Ke7 {[%clk 0:00:02.5]} 59.
Rxh6 {[%clk 0:01:05]} 59... Kxd7 {[%clk 0:00:02.9]} 60. Rd6+ {[%clk 0:01:05.1]}
60... Ke7 {[%clk 0:00:02.7]} 61. Rxd8 {[%clk 0:01:06]} 61... Kxd8 {[%clk
0:00:03.6]} 62. Kd4 {[%clk 0:01:06.9]} 1-0

[Event "*** Titled Tuesday Blitz"]
[Site "Chess.com"]
[Date "2021.03.09"]
[Round "7"]
[White "CzechmVIII"]
[Black "imdvb6307"]
[Result "0-1"]
[WhiteElo "2239"]
[BlackElo "2377"]
[TimeControl "180+1"]
[EndTime "11:22:00 PST"]
[Termination "imdvb6307 won by resignation"]

1. e4 {[%clk 0:03:00.9]} 1... Nc6 {[%clk 0:02:59.6]} 2. Nf3 {[%clk 0:03:00.3]}
2... d6 {[%clk 0:02:59.9]} 3. d4 {[%clk 0:03:00.1]} 3... Nf6 {[%clk 0:03:00.2]}
4. Nc3 {[%clk 0:02:59.9]} 4... Bg4 {[%clk 0:03:00.7]} 5. d5 {[%clk 0:03:00]}
5... Ne5 {[%clk 0:02:59.9]} 6. Nxe5 {[%clk 0:03:00.1]} 6... Bxd1 {[%clk
0:02:58.7]} 7. Bb5+ {[%clk 0:02:59.5]} 7... c6 {[%clk 0:02:58.7]} 8. dxc6 {[%clk
0:02:59.6]} 8... dxe5 {[%clk 0:02:58.9]} 9. c7+ {[%clk 0:02:45.2]} 9... Qd7
{[%clk 0:02:58.7]} 10. Bxd7+ {[%clk 0:02:43.3]} 10... Nxd7 {[%clk 0:02:58.8]}
11. Kxd1 {[%clk 0:02:31.7]} 11... Rc8 {[%clk 0:02:58.3]} 12. Be3 {[%clk
0:02:19]} 12... a6 {[%clk 0:02:58.4]} 13. Ke2 {[%clk 0:02:12]} 13... e6 {[%clk
0:02:58]} 14. Rad1 {[%clk 0:02:02.9]} 14... Rxc7 {[%clk 0:02:55]} 15. Rd3 {[%clk
0:01:56.2]} 15... Bb4 {[%clk 0:02:49]} 16. Rhd1 {[%clk 0:01:54.3]} 16... Ke7
{[%clk 0:02:47.1]} 17. Bd2 {[%clk 0:01:35.6]} 17... Bc5 {[%clk 0:01:15.7]} 18.
Rg3 {[%clk 0:01:26.8]} 18... g6 {[%clk 0:01:13.8]} 19. Bh6 {[%clk 0:01:19.3]}
19... Bd4 {[%clk 0:01:10.8]} 20. Be3 {[%clk 0:00:35.4]} 20... Bxc3 {[%clk
0:01:09.5]} 21. bxc3 {[%clk 0:00:35.7]} 21... Rhc8 {[%clk 0:01:01.1]} 22. Bc1
{[%clk 0:00:29.4]} 22... Rxc3 {[%clk 0:00:58]} 23. Ba3+ {[%clk 0:00:27.7]} 23...
Ke8 {[%clk 0:00:57.1]} 24. Rxc3 {[%clk 0:00:17]} 24... Rxc3 {[%clk 0:00:55.9]}
25. Bd6 {[%clk 0:00:15.9]} 25... Rxc2+ {[%clk 0:00:55.8]} 26. Rd2 {[%clk
0:00:14]} 26... Rxd2+ {[%clk 0:00:46.3]} 27. Kxd2 {[%clk 0:00:14.9]} 27... Kd8
{[%clk 0:00:45.6]} 28. Kc3 {[%clk 0:00:14.3]} 28... b6 {[%clk 0:00:45.5]} 29. a4
{[%clk 0:00:12.4]} 29... Kc8 {[%clk 0:00:45.5]} 30. Kc4 {[%clk 0:00:12.1]} 30...
Kb7 {[%clk 0:00:45.5]} 31. f3 {[%clk 0:00:11]} 31... Kc6 {[%clk 0:00:45.5]} 32.
Ba3 {[%clk 0:00:07.8]} 32... Nc5 {[%clk 0:00:37.9]} 33. a5 {[%clk 0:00:06.3]}
33... Nb7 {[%clk 0:00:37.4]} 34. axb6 {[%clk 0:00:05.9]} 34... Kxb6 {[%clk
0:00:37.6]} 35. h4 {[%clk 0:00:04.5]} 35... h5 {[%clk 0:00:36.7]} 36. g4 {[%clk
0:00:03.7]} 36... Kc6 {[%clk 0:00:36.8]} 37. gxh5 {[%clk 0:00:03.9]} 37... gxh5
{[%clk 0:00:34.4]} 38. Bb2 {[%clk 0:00:04.8]} 38... Nd6+ {[%clk 0:00:33]} 39.
Kb4 {[%clk 0:00:04.5]} 39... Kb6 {[%clk 0:00:32.5]} 40. Bxe5 {[%clk 0:00:03.8]}
40... a5+ {[%clk 0:00:32.4]} 41. Ka4 {[%clk 0:00:03.3]} 41... Nb7 {[%clk
0:00:32.3]} 42. Bb2 {[%clk 0:00:02.9]} 42... Nc5+ {[%clk 0:00:32.4]} 43. Ka3
{[%clk 0:00:02.4]} 43... Kb5 {[%clk 0:00:32.6]} 44. Bc3 {[%clk 0:00:01.1]} 44...
a4 {[%clk 0:00:32.9]} 45. Bd4 {[%clk 0:00:01.4]} 45... Kc4 {[%clk 0:00:33.3]}
46. Bxc5 {[%clk 0:00:01.6]} 46... Kxc5 {[%clk 0:00:33.6]} 47. Kxa4 {[%clk
0:00:02.5]} 47... Kd4 {[%clk 0:00:33.9]} 48. Kb4 {[%clk 0:00:02.9]} 48... Ke3
{[%clk 0:00:34.1]} 49. Kc5 {[%clk 0:00:02.7]} 49... Kxf3 {[%clk 0:00:34.4]} 50.
e5 {[%clk 0:00:03.5]} 50... Ke4 {[%clk 0:00:34.4]} 51. Kd6 {[%clk 0:00:04.3]}
51... Kf5 {[%clk 0:00:34.6]} 52. Ke7 {[%clk 0:00:04.3]} 52... Kxe5 {[%clk
0:00:34.8]} 53. Kxf7 {[%clk 0:00:05.2]} 53... Kf5 {[%clk 0:00:35.2]} 54. Kg7
{[%clk 0:00:04.6]} 54... e5 {[%clk 0:00:35.4]} 55. Kh6 {[%clk 0:00:05.5]} 55...
Kg4 {[%clk 0:00:35.7]} 56. Kg6 {[%clk 0:00:05.9]} 56... e4 {[%clk 0:00:36]} 0-1